bitfinex/quotes_ETHUSD_20251008
["timestamp","ask_amount","ask_price","bid_price","bid_amount"]
[1759950203776,0.5657,4518.2,4518.1,0.011]
[1759950205179,0.1104,4518.2,4518.1,0.011]
[1759950206667,0.1104,4518.2,4518.1,2.22431975]
[1759950206966,0.1104,4518.2,4518.1,0.011]
[1759950207471,0.1104,4518.2,4518.1,2.22431975]
[1759950208172,0.1104,4518.2,4518.1,0.011]
[1759950208373,0.1104,4518.2,4518.1,2.22431975]
[1759950210370,0.1104,4518.2,4518.1,9.12704881]
[1759950210540,0.1104,4518.2,4518.1,9.11039277]
[1759950210741,0.1104,4518.2,4518.1,8.95109277]
[1759950210941,0.1104,4518.2,4518.1,8.50731975]
[1759950213145,0.1104,4518.2,4518.1,8.66661975]
[1759950215572,0.1104,4518.2,4518.1,8.50731975]
[1759950216677,0.1104,4518.2,4518.1,8.66661975]
[1759950218679,0.1104,4518.2,4518.1,8.50731975]
[1759950219392,0.1104,4518.2,4518.1,10.80831975]
[1759950219565,0.1104,4518.2,4518.1,12.12642277]
[1759950220102,0.1104,4518.2,4518.1,3.54242277]
[1759950220391,0.1104,4518.2,4518.1,10.80831975]
[1759950222279,0.1104,4518.2,4518.1,2.38361975]
[1759950222484,0.1104,4518.2,4518.1,10.98327579]
[1759950222682,0.1104,4518.2,4518.1,10.96661975]
[1759950222884,0.002,4519.1,4519.0,2.21287895]
[1759950223178,0.002,4519.1,4519.0,11.25510663]
[1759950223385,0.002,4519.1,4519.0,11.39776161]
[1759950225916,0.1124,4519.1,4519.0,11.39776161]
[1759950226211,0.002,4519.1,4519.0,11.39776161]
[1759950226621,0.002,4519.1,4519.0,11.50816161]
[1759950226794,0.002,4519.1,4519.0,14.06176161]
[1759950226995,0.002,4519.1,4519.0,14.17216161]
[1759950238927,2.21171699,4521.4,4519.0,14.17216161]
[1759950238928,0.1104,4521.0,4519.8,4.13248727]
[1759950239109,0.1104,4521.0,4520.8,2.28029787]
[1759950239430,0.1104,4521.0,4520.8,10.86029787]
[1759950239652,0.1104,4521.0,4520.8,2.43959787]
[1759950239802,0.1104,4521.0,4520.8,11.03622087]
[1759950240003,0.1104,4521.0,4520.8,11.01959787]
[1759950243155,0.1104,4521.0,4520.2,0.1104]
[1759950243352,0.4636,4521.3,4520.8,2.21199787]
[1759950243554,0.4636,4521.3,4520.8,6.279]
[1759950243919,0.4636,4521.3,4520.8,8.49099787]
[1759950244157,0.0276463,4521.4,4520.8,8.49099787]
[1759950244551,2.21176488,4521.3,4520.8,6.279]
[1759950244737,0.4636,4521.2,4520.8,6.279]
[1759950245168,0.49124752,4521.2,4520.8,6.279]
[1759950246259,0.4636,4521.2,4520.8,6.279]
[1759950247057,0.4736,4520.9,4520.8,6.279]
[1759950247260,2.21223609,4520.4,4519.6,4.13258518]
[1759950247459,0.1104,4519.8,4519.7,12.7105328]
[1759950247625,0.02765364,4520.2,4519.0,0.60288266]
[1759950247957,0.1104,4519.5,4519.2,2.21274459]
[1759950248158,0.1104,4519.5,4519.3,1.145]
[1759950248565,0.4636,4519.4,4519.0,0.001]
[1759950248727,0.02765915,4519.3,4519.0,0.001]
[1759950248926,2.21278467,4519.2,4519.1,6.278]
[1759950249127,0.4636,4519.2,4519.1,6.278]
[1759950249378,2.67638102,4519.2,4519.1,6.278]
[1759950249872,0.4636,4519.2,4519.1,6.278]
[1759950250088,0.02765731,4519.6,4519.1,6.278]
[1759950250294,0.02765609,4519.8,4519.1,8.49081906]
[1759950250565,0.4636,4519.9,4519.2,0.01664171]
[1759950250862,0.25175364,4520.2,4519.2,0.01664171]
[1759950251167,2.21234671,4520.1,4519.3,2.2126949]
[1759950251460,0.49125486,4520.0,4519.4,6.278]
[1759950251634,2.21253492,4519.8,4519.4,6.278]
[1759950251837,0.4912567,4519.7,4519.4,6.278]
[1759950252346,0.4636,4519.6,4519.4,6.278]
[1759950252678,0.4636,4519.5,4519.4,6.278]
[1759950252962,0.49125792,4519.5,4519.4,6.278]
[1759950253170,0.02765792,4519.5,4519.4,6.278]
[1759950253330,0.0276567,4519.7,4519.4,6.278]
[1759950253531,0.25175058,4520.7,4519.4,6.278]
[1759950253848,0.94953464,4520.6,4519.5,0.01663463]
[1759950254034,0.012,4520.9,4520.0,2.21234902]
[1759950254357,0.02764997,4520.8,4520.1,5.696]
[1759950254772,0.02764997,4520.8,4520.2,2.22891621]
[1759950255565,0.1104,4520.2,4520.1,5.696]
[1759950256225,0.1104,4520.2,4520.1,7.90834043]
[1759950256487,0.1104,4520.2,4520.1,5.696]
[1759950256866,0.1104,4520.2,4520.1,7.90834043]
[1759950257070,0.1104,4520.2,4520.1,9.15051306]
[1759950258188,0.1104,4520.2,4520.1,5.696]
[1759950258189,0.574,4520.2,4520.1,5.696]
[1759950258391,0.1104,4520.2,4520.1,5.696]
[1759950258558,0.1104,4520.2,4519.6,2.21258498]
[1759950258755,0.1104,4520.0,4519.9,2.21243832]
[1759950262396,0.1104,4520.0,4519.9,2.37173832]
[1759950262596,0.1104,4520.0,4519.9,2.21243832]
[1759950263162,0.1104,4520.0,4519.9,2.37173832]
[1759950263359,0.012,4520.9,4520.5,2.21209588]
[1759950263565,0.4559,4520.9,4520.6,6.278]
[1759950263798,0.4559,4520.9,4520.7,5.756]
[1759950264000,0.012,4520.9,4520.8,6.278]
[1759950264199,2.2515983,4520.9,4520.8,6.278]
[1759950264510,3.01311799,4520.9,4520.8,6.278]
[1759950264713,0.4559,4520.9,4520.8,6.278]
[1759950265014,0.012,4520.9,4520.8,6.278]
[1759950265683,2.22394894,4520.9,4520.8,6.278]
[1759950265871,0.012,4520.9,4520.8,6.278]
[1759950266817,0.012,4520.9,4520.8,8.64929787]
[1759950266996,0.1224,4520.9,4520.8,9.80623704]
[1759950268203,0.1224,4520.9,4520.8,9.96553704]
[1759950268505,0.012,4520.9,4520.8,10.07593704]
[1759950269016,0.012,4520.9,4520.8,19.27993704]
[1759950274822,0.012,4520.9,4520.8,21.19993704]
[1759950276919,0.012,4520.9,4520.8,21.04063704]
[1759950277223,0.012,4520.9,4520.8,21.19993704]
[1759950277727,0.012,4520.9,4520.8,18.71823917]
[1759950277883,0.012,4520.9,4520.8,20.93023704]
[1759950278088,0.012,4520.9,4520.8,21.08953704]
[1759950281620,0.012,4520.9,4520.8,21.19993704]
[1759950281929,0.012,4520.9,4520.8,25.0339897]
[1759950283950,0.012,4520.9,4520.8,21.19993704]
[1759950289680,0.002,4521.4,4520.9,4.13194894]
[1759950289881,0.002,4521.4,4521.3,6.04580591]
[1759950290091,0.002,4521.4,4521.3,1.92]
[1759950290241,0.002,4521.4,4519.8,2.21245421]
[1759950290242,0.002,4521.4,4521.1,2.3]
[1759950290446,0.002,4521.4,4520.7,9.201]
[1759950290447,0.428,4521.3,4521.2,6.274]
[1759950290660,0.428,4521.3,4520.0,2.2123787]
[1759950290661,0.428,4521.3,4519.1,11.41482641]
[1759950290989,2.23948729,4521.2,4520.6,2.3]
[1759950291188,2.23948729,4521.2,4520.7,0.348]
[1759950291485,0.428,4521.1,4520.7,0.348]
[1759950291646,0.428,4521.0,4520.7,0.348]
[1759950293337,2.23941034,4521.3,4520.7,0.348]
[1759950293537,0.4325,4521.2,4520.7,0.348]
[1759950293753,0.85635551,4521.3,4520.7,0.348]
[1759950294091,0.4325,4521.1,4520.7,0.348]
[1759950294457,0.4325,4521.0,4520.7,0.348]
[1759950295052,0.4325,4520.9,4520.7,0.348]
[1759950296476,0.02764752,4521.2,4520.7,0.348]
[1759950296678,0.4325,4521.1,4520.7,0.348]
[1759950296883,0.02764875,4521.0,4520.7,0.348]
[1759950297250,0.46014752,4521.2,4520.7,0.348]
[1759950297485,0.4325,4521.1,4520.7,0.348]
[1759950298361,0.02764752,4521.2,4520.7,0.348]
[1759950298565,0.4325,4521.0,4520.7,0.348]
[1759950299554,0.002,4521.4,4520.8,0.016623]
[1759950299769,0.002,4521.4,4521.0,3.83405266]
[1759950299988,0.002,4521.4,4521.2,2.21180217]
[1759950300296,0.002,4521.4,4521.3,2.21175325]
[1759950300696,0.002,4521.4,4521.1,6.4333]
[1759950300991,0.1104,4521.2,4521.1,8.48585109]
[1759950301350,0.1104,4521.2,4520.0,0.1593]
[1759950301610,0.1104,4520.7,4520.6,2.657]
[1759950301916,0.002,4521.4,4520.6,8.574]
[1759950301917,2.64439954,4521.1,4520.6,8.574]
[1759950302226,2.64439954,4521.1,4520.0,2.21236008]
[1759950302227,0.1104,4520.6,4520.0,6.274]
[1759950302394,2.64468646,4520.5,4520.0,6.274]
[1759950302722,0.46015242,4520.4,4520.0,6.274]
[1759950303104,0.4325,4520.3,4520.0,6.274]
[1759950303495,2.21209573,4520.6,4520.0,6.274]
[1759950303814,0.4325,4520.2,4520.1,0.001]
[1759950304782,0.0276518,4520.5,4520.1,0.001]
[1759950304981,0.02765119,4520.6,4520.1,0.001]
[1759950305182,2.23975571,4520.6,4520.1,0.001]
[1759950305618,0.4325,4520.5,4520.1,0.001]
[1759950305816,0.02765242,4520.4,4520.1,0.001]
[1759950306919,0.4325,4520.3,4520.1,0.001]
[1759950307719,0.4345,4521.4,4520.1,0.01763113]
[1759950307905,0.02764691,4521.3,4520.5,2.21214247]
[1759950308216,0.4325,4521.3,4520.5,2.21214247]
[1759950308380,0.4325,4521.3,4520.5,2.22876614]
[1759950308381,0.46014691,4521.3,4520.5,2.22876614]
[1759950308587,2.67193642,4521.3,4520.5,2.22876614]
[1759950308786,2.67193642,4521.3,4520.5,0.01662367]
[1759950308986,3.16049249,4521.3,4520.5,0.01662367]
[1759950309221,2.21180287,4521.2,4520.5,2.22875962]
[1759950309531,0.02764813,4521.1,4520.4,6.274]
[1759950309698,0.1104,4520.5,4520.4,6.274]
[1759950310287,0.5429,4520.5,4520.1,0.001]
[1759950310532,0.02765242,4520.4,4520.1,0.001]
[1759950310698,0.002,4521.4,4520.2,7.68526138]
[1759950310899,2.21196345,4520.9,4520.2,5.473]
[1759950311284,0.02764997,4520.8,4520.2,5.473]
[1759950311590,2.64458628,4520.7,4520.2,5.473]
[1759950311790,0.46015119,4520.6,4520.2,5.473]
[1759950312611,0.02765058,4520.7,4520.2,5.473]
[1759950312833,0.4325,4520.6,4520.2,5.473]
[1759950312986,0.46015119,4520.6,4520.2,5.473]
[1759950313386,0.4325,4520.5,4520.2,5.473]
[1759950314206,2.23974891,4520.6,4520.2,5.473]
[1759950314402,2.6447024,4520.4,4520.1,0.001]
[1759950314602,2.21229149,4520.2,4520.1,0.001]
[1759950314991,2.64479149,4520.2,4520.1,0.001]
[1759950315598,0.4325,4520.2,4520.1,0.001]
[1759950316117,2.64479149,4520.2,4520.1,0.001]
[1759950317206,2.67244513,4520.2,4520.1,0.001]
[1759950319904,0.02765364,4520.2,4520.1,0.001]
[1759950320108,0.46015364,4520.2,4520.1,0.001]
[1759950320339,2.67244513,4520.2,4520.1,0.001]
[1759950322445,3.16090986,4520.2,4520.1,0.001]
[1759950329339,9.43590986,4520.2,4520.1,0.001]
[1759950329552,9.40825622,4520.2,4520.1,0.001]
[1759950330736,3.13325622,4520.2,4520.1,0.001]
[1759950330931,0.4325,4520.2,4520.1,0.001]
[1759950331133,0.002,4520.9,4520.1,0.001]
[1759950331357,0.02964936,4520.9,4520.1,0.001]
[1759950331544,2.24160736,4520.9,4520.1,2.21331282]
[1759950331754,0.02964936,4520.9,4520.3,2.21223621]
[1759950331975,0.02964936,4520.9,4520.4,2.21217267]
[1759950332280,0.47884936,4520.9,4520.3,2.21222859]
[1759950332644,0.47884936,4520.9,4520.2,2.21227809]
[1759950332846,0.1104,4520.3,4520.1,0.001]
[1759950333881,0.5596,4520.3,4520.1,0.001]
[1759950334085,0.1104,4520.3,4520.1,0.001]
[1759950335196,0.02964936,4520.9,4520.1,0.001]
[1759950335479,0.002,4520.9,4520.2,0.45064795]
[1759950335681,0.4512,4520.9,4520.2,2.66292612]
[1759950336454,0.47884936,4520.9,4520.2,2.66292612]
[1759950337249,0.47884936,4520.9,4520.3,2.2122246]
[1759950337654,0.47884936,4520.9,4520.2,0.45064795]
[1759950337866,0.002,4520.9,4520.5,2.2121061]
[1759950339473,0.002,4520.9,4520.8,6.64917732]
[1759950339681,0.002,4520.9,4520.8,12.92317732]
[1759950339890,0.002,4520.9,4520.8,13.08247732]
[1759950340273,0.002,4520.9,4520.8,15.00247732]
[1759950340457,0.002,4520.9,4520.8,15.91709504]
[1759950341186,0.002,4520.9,4520.8,11.40961772]
[1759950341557,0.002,4520.9,4520.8,13.78091559]
[1759950342078,0.002,4520.9,4520.8,5.04661559]
[1759950342260,0.002,4520.9,4520.8,13.62161559]
[1759950342660,0.002,4520.9,4520.8,13.78091559]
[1759950343762,0.002,4520.9,4520.8,13.62161559]
[1759950344062,0.002,4520.9,4520.8,10.78699787]
[1759950344790,0.002,4520.9,4520.8,2.21199787]
[1759950344991,0.002,4520.9,4520.8,8.573]
[1759950345191,0.4456,4520.9,4520.4,1.92]
[1759950345400,0.4456,4520.9,4520.5,6.273]
[1759950345401,0.4436,4520.8,4520.5,6.273]
[1759950346306,2.21209573,4520.6,4520.5,6.273]
[1759950346504,2.21229149,4520.2,4520.1,0.001]
[1759950346927,2.65589149,4520.2,4520.1,0.001]
[1759950347421,0.4436,4520.2,4520.1,0.001]
[1759950347593,2.65589149,4520.2,4520.1,0.001]
[1759950348402,2.68354513,4520.2,4520.1,0.001]
[1759950349118,3.17311904,4520.2,4520.1,0.001]
[1759950351292,9.44611904,4520.2,4520.1,0.001]
[1759950351623,9.4184654,4520.2,4520.1,0.001]
[1759950351809,0.93317391,4520.2,4520.1,0.001]
[1759950351988,0.4436,4520.2,4520.1,0.001]
[1759950352190,2.68354513,4520.2,4520.1,0.001]
[1759950357325,2.23994513,4520.2,4520.1,0.001]
[1759950357498,2.68304513,4520.2,4520.1,0.001]
[1759950357704,3.79997061,4520.2,4520.1,0.001]
[1759950359431,0.02765364,4520.2,4520.1,0.001]
[1759950359727,0.002,4520.9,4520.1,0.001]
[1759950359897,2.2139514,4520.9,4520.1,2.28163907]
[1759950360227,2.2139514,4520.9,4520.2,2.22891942]
[1759950360395,2.2139514,4520.9,4520.2,0.0166282]
[1759950360791,0.1104,4520.2,4520.1,0.001]
[1759950361020,0.1104,4520.2,4520.1,0.42644367]
[1759950363129,0.1104,4520.2,4520.1,0.001]
[1759950365212,2.76579149,4520.2,4520.1,0.001]
[1759950365838,0.1104,4520.2,4520.1,0.001]
[1759950366147,0.002,4520.9,4520.1,0.001]
[1759950366351,2.21209157,4520.7,4520.1,0.001]
[1759950366536,0.02765119,4520.6,4520.1,0.001]
[1759950367454,2.23975892,4520.6,4520.1,0.001]
[1759950368622,0.02765119,4520.6,4520.1,0.1603]
[1759950368828,0.02765058,4520.7,4520.1,0.001]
[1759950369031,2.21208955,4520.7,4520.1,0.001]
[1759950369354,0.02765119,4520.6,4520.1,0.001]
[1759950370123,0.02964936,4520.9,4520.1,0.001]
[1759950370526,2.21203848,4520.8,4520.1,0.001]
[1759950370839,2.23971341,4520.7,4520.1,0.001]
[1759950371535,0.02765058,4520.7,4520.1,2.21330109]
[1759950371740,0.02765058,4520.7,4520.1,0.001]
[1759950372131,2.23970455,4520.7,4520.1,0.001]
[1759950372533,2.21209573,4520.6,4520.1,0.001]
[1759950372959,2.21204433,4520.8,4520.1,0.001]
[1759950373123,2.23970384,4520.7,4520.1,0.001]
[1759950373651,0.47075058,4520.7,4520.1,0.001]
[1759950373861,2.21209573,4520.6,4520.1,0.001]
[1759950374226,0.4431,4520.5,4520.1,0.001]
[1759950375140,0.02764997,4520.8,4520.1,0.001]
[1759950375141,2.21205254,4520.7,4520.1,0.001]
[1759950375456,0.02765119,4520.6,4520.1,0.001]
[1759950376453,2.23974839,4520.6,4520.1,0.001]
[1759950376856,2.21229149,4520.2,4520.1,0.001]
[1759950377237,2.65539149,4520.2,4520.1,0.001]
[1759950383170,0.02765303,4520.3,4520.1,0.001]
[1759950383365,2.2399051,4520.3,4520.1,0.001]
[1759950383567,2.65359149,4520.2,4520.1,0.001]
[1759950383774,2.68124513,4520.2,4520.1,0.001]
[1759950385045,3.17058972,4520.2,4520.1,0.001]
[1759950385342,0.95829823,4520.2,4520.1,0.001]
[1759950385568,0.0276518,4520.5,4520.1,0.001]
[1759950385773,0.002,4520.9,4520.1,3.83823113]
[1759950385978,0.002,4520.9,4520.1,0.001]
[1759950386182,0.002,4520.9,4520.2,2.21224957]
[1759950386391,0.1104,4520.2,4520.1,0.001]
[1759950387552,0.1104,4520.2,4520.1,2.21334043]
[1759950389298,0.1104,4520.2,4520.1,0.001]
[1759950389467,0.1104,4520.2,4520.1,2.84230366]
[1759950389664,0.1104,4520.2,4520.1,3.00160366]
[1759950390069,0.1104,4520.2,4520.1,0.62996323]
[1759950390270,0.1104,4520.2,4520.1,0.001]
[1759950392095,0.5517,4520.2,4520.1,0.001]
[1759950392289,0.1104,4520.2,4520.1,0.001]
[1759950394604,0.5517,4520.2,4520.1,0.001]
[1759950394796,0.1104,4520.2,4520.1,0.001]
[1759950395987,2.76399149,4520.2,4520.1,0.001]
[1759950396191,3.67575462,4520.2,4520.1,0.001]
[1759950398089,4.51491312,4520.2,4520.1,0.001]
[1759950398294,4.48725948,4520.2,4520.1,0.001]
[1759950399031,10.75925948,4520.2,4520.1,0.001]
[1759950399205,12.85470098,4520.2,4520.1,0.001]
[1759950401813,4.28170098,4520.2,4520.1,0.001]
[1759950402014,0.1104,4520.2,4520.1,0.001]
[1759950402218,0.002,4520.9,4520.1,0.001]
[1759950402416,0.002,4520.9,4520.4,3.83723113]
[1759950402618,0.002,4520.9,4520.7,2.21200122]
[1759950402830,0.002,4520.9,4520.8,0.01662343]
[1759950403015,0.002,4520.9,4520.8,0.23880544]
[1759950403230,0.002,4520.9,4520.8,2.46742674]
[1759950403609,0.002,4520.9,4520.8,2.45080331]
[1759950404221,0.002,4520.9,4520.8,6.44733444]
[1759950404939,0.002,4520.9,4520.8,2.61010331]
[1759950405108,0.002,4520.9,4520.8,2.62672631]
[1759950405810,0.002,4520.9,4520.8,0.41472844]
[1759950406019,0.002,4520.9,4520.5,1.92]
[1759950406240,0.002,4520.9,4520.6,3.595]
[1759950409245,0.441,4520.9,4520.6,3.595]
[1759950409563,2.21223447,4520.4,4520.1,0.001]
[1759950409711,2.21229149,4520.2,4520.1,0.001]
[1759950409912,2.82000906,4520.2,4520.1,0.001]
[1759950410110,2.21253623,4519.7,4519.3,0.66409955]
[1759950410315,6.07742406,4519.7,4518.5,0.598]
[1759950410637,6.48876736,4519.7,4518.5,0.598]
[1759950411075,12.75976736,4519.7,4518.5,0.598]
[1759950411243,14.25699057,4519.7,4518.5,0.598]
[1759950411884,10.41975944,4519.7,4518.5,0.598]
[1759950412451,10.41975944,4519.7,4518.6,1.92]
[1759950412955,1.93622321,4519.7,4518.5,0.598]
[1759950413171,2.67919293,4519.7,4518.6,1.92]
[1759950413358,2.67919293,4519.7,4518.5,0.598]
[1759950413584,2.67919293,4519.7,4518.8,2.21296849]
[1759950414158,2.67919293,4519.7,4518.9,2.21292066]
[1759950414607,0.4666567,4519.7,4518.7,0.01664099]
[1759950414890,0.4666567,4519.7,4518.5,0.598]
[1759950414891,3.37101499,4520.1,4519.2,2.21276964]
[1759950415068,2.23999895,4520.1,4519.3,2.21272607]
[1759950415265,2.21244112,4519.9,4519.1,2.24046252]
[1759950415470,2.24014816,4519.8,4519.1,0.02763855]
[1759950415683,2.67854816,4519.8,4519.1,2.22382359]
[1759950415889,0.4384,4519.7,4519.1,2.22382359]
[1759950416367,0.4384,4519.7,4519.1,0.011]
[1759950416975,0.4384,4519.7,4519.1,2.22381472]
[1759950417300,0.4384,4519.7,4519.1,0.011]
[1759950417597,0.4384,4519.7,4519.1,2.22382599]
[1759950418061,0.4384,4519.7,4519.1,0.011]
[1759950418684,0.4384,4519.7,4519.1,2.22382423]
[1759950419292,0.4384,4519.7,4519.2,2.21277218]
[1759950419498,0.02765609,4519.8,4519.1,0.011]
[1759950419778,0.02765609,4519.8,4519.3,2.2127085]
[1759950420189,2.24006038,4520.0,4519.2,2.21277424]
[1759950420390,0.79274604,4519.9,4519.2,2.21277424]
[1759950420589,0.02765609,4519.8,4519.2,2.21277424]
[1759950420801,0.46605609,4519.8,4519.1,0.011]
[1759950420980,2.21253623,4519.7,4519.1,0.011]
[1759950421179,2.65093623,4519.7,4519.1,0.011]
[1759950421380,3.2193151,4519.7,4519.1,0.011]
[1759950421682,1.00677887,4519.7,4519.1,0.011]
[1759950422811,3.2193151,4519.7,4519.1,0.011]
[1759950422975,1.00677887,4519.7,4519.1,0.011]
[1759950423178,0.4384,4519.7,4519.1,0.011]
[1759950423890,2.65093623,4519.7,4519.1,0.011]
[1759950425607,0.4384,4519.7,4519.1,0.011]
[1759950426025,2.65093623,4519.7,4519.1,0.011]
[1759950430542,0.4384,4519.7,4519.1,2.22380927]
[1759950431142,2.65093623,4519.7,4519.1,0.011]
[1759950431443,3.76713592,4519.7,4519.1,0.011]
[1759950431935,1.55459969,4519.7,4519.1,0.011]
[1759950432136,1.55459969,4519.7,4519.1,2.22382637]
[1759950432940,0.02765609,4519.8,4519.1,0.011]
[1759950433113,0.02765486,4520.0,4519.3,2.21268903]
[1759950433326,2.2143609,4520.1,4519.3,2.21268903]
[1759950433522,0.02965425,4520.1,4519.4,0.01663671]
[1759950433836,0.02965425,4520.1,4519.2,0.01663671]
[1759950434514,0.002,4520.1,4519.5,4.44246852]
[1759950434746,0.002,4520.1,4520.0,2.21238938]
[1759950435065,0.002,4520.1,4519.7,0.55474685]
[1759950435220,0.002,4520.1,4520.0,10.78438938]
[1759950435221,0.1124,4520.1,4520.0,10.78438938]
[1759950437860,0.1124,4520.1,4520.0,8.48338938]
[1759950438719,0.002,4520.1,4520.0,8.64368938]
[1759950439249,0.002,4520.1,4520.0,15.0061579]
[1759950439669,0.002,4520.1,4520.0,15.09469372]
[1759950439951,0.002,4520.1,4520.0,17.06655147]
[1759950440155,0.002,4520.1,4520.0,12.46378295]
[1759950440454,0.002,4520.1,4520.0,12.62408295]
[1759950443676,0.002,4520.1,4520.0,6.35308295]
[1759950443977,0.002,4520.1,4520.0,4.3812252]
[1759950444281,0.002,4520.1,4520.0,12.9522252]
[1759950447288,0.002,4520.1,4520.0,4.2209252]
[1759950447492,0.002,4520.1,4520.0,12.70138938]
[1759950450556,0.002,4520.1,4520.0,12.86168938]
[1759950450775,0.002,4520.1,4520.0,14.36910677]
[1759950451415,0.002,4520.1,4520.0,14.20880677]
[1759950451860,0.002,4520.1,4520.0,14.36910677]
[1759950453195,0.002,4520.1,4520.0,14.20880677]
[1759950453399,0.002,4520.1,4520.0,4.13238938]
[1759950453607,0.002,4520.1,4520.0,10.40038938]
[1759950453899,15.0,4520.0,4519.6,0.001]
[1759950454084,0.4449,4519.9,4519.6,2.21354746]
[1759950454273,0.4449,4519.8,4519.7,0.798]
[1759950456508,15.0,4520.0,4519.7,0.798]
[1759950456894,15.4449,4520.0,4519.7,0.798]
[1759950457396,15.4449,4520.0,4519.7,3.0105312]
[1759950457877,15.4449,4520.0,4519.7,0.798]
[1759950458304,15.81785816,4520.0,4519.7,0.798]
[1759950458606,0.4449,4519.9,4519.7,0.798]
[1759950459027,15.0,4520.0,4519.8,2.21248727]
[1759950459537,15.0,4520.0,4519.9,2.21243832]
[1759950463407,15.0,4520.0,4519.9,8.48043832]
[1759950470441,15.0,4520.0,4519.9,6.268]
[1759950471148,15.0,4520.0,4519.9,8.48043832]
[1759950472259,15.0,4520.0,4519.9,3.48043832]
[1759950473119,15.0,4520.0,4519.9,8.48043832]
[1759950474815,15.299,4520.0,4519.9,8.48043832]
[1759950475145,15.301,4520.0,4519.9,6.268]
[1759950476054,15.301,4520.0,4519.9,8.48043832]
[1759950477155,15.301,4520.0,4519.9,6.268]
[1759950477357,15.301,4520.0,4519.9,8.48043832]
[1759950478330,15.301,4520.0,4519.9,6.268]
[1759950479065,15.301,4520.0,4519.8,0.001]
[1759950479273,0.60195547,4519.9,4519.8,0.001]
[1759950479770,0.60195547,4519.9,4519.8,6.269]
[1759950480358,2.81439379,4519.9,4519.8,0.001]
[1759950485272,2.81439379,4519.9,4519.2,6.268]
[1759950485480,6.268,4519.8,4519.2,6.268]
[1759950485644,0.0276567,4519.7,4519.2,6.268]
[1759950485844,0.4915567,4519.7,4519.2,6.268]
[1759950486250,0.4639,4519.6,4519.2,6.268]
[1759950486474,0.4639,4519.5,4519.2,6.268]
[1759950487157,0.0276567,4519.7,4519.2,6.268]
[1759950487361,0.02765609,4519.8,4519.2,6.268]
[1759950487761,0.02765609,4519.8,4519.2,8.4807661]
[1759950488349,0.02765609,4519.8,4519.3,2.21269693]
[1759950488786,0.02765609,4519.8,4519.2,6.268]
[1759950489081,0.02765609,4519.8,4519.2,8.48077018]
[1759950489608,0.02765609,4519.8,4519.2,6.268]
[1759950489787,0.02765609,4519.8,4519.2,8.48076874]
[1759950489965,0.02765609,4519.8,4519.2,6.268]
[1759950490287,0.02765609,4519.8,4519.2,8.48077087]
[1759950490485,0.4639,4519.7,4519.2,6.268]
[1759950490783,0.4639,4519.6,4519.2,8.48077779]
[1759950492591,0.4639,4519.6,4519.2,6.268]
[1759950492806,2.24016608,4519.8,4519.2,6.268]
[1759950493010,0.4639,4519.7,4519.2,8.48077614]
[1759950493493,0.4639,4519.6,4519.2,8.48077614]
[1759950494191,0.4639,4519.6,4519.3,2.21272697]
[1759950494399,0.4639,4519.6,4519.2,6.268]
[1759950494558,0.02765547,4519.9,4519.3,2.21273206]
[1759950494761,0.02765547,4519.9,4519.3,8.47973206]
[1759950495159,0.4639,4519.8,4519.3,6.267]
[1759950495361,0.4915567,4519.7,4519.3,6.267]
[1759950495601,0.4639,4519.6,4519.3,6.267]
[1759950495889,0.4639,4519.5,4519.3,6.267]
[1759950496483,0.4639,4519.5,4519.3,8.47973058]
[1759950497797,0.4639,4519.5,4519.3,6.267]
[1759950498178,0.4639,4519.5,4519.3,8.47972321]
[1759950498564,0.4639,4519.5,4519.3,6.267]
[1759950498765,0.49155547,4519.9,4519.4,2.21264384]
[1759950499069,0.4639,4519.8,4519.4,8.47964384]
[1759950499286,0.0276567,4519.7,4519.4,8.47964384]
[1759950499487,0.301,4520.0,4519.6,3.83868202]
[1759950499708,0.301,4520.0,4519.9,2.21243832]
[1759950499872,0.301,4520.0,4519.9,6.06775435]
[1759950500073,0.301,4520.0,4519.9,6.05112034]
[1759950500712,0.301,4520.0,4519.8,2.21245237]
[1759950500894,0.301,4520.0,4519.9,6.267]
[1759950501113,0.301,4520.0,4519.9,2.64]
[1759950501340,0.1104,4519.9,4519.8,2.21244609]
[1759950501642,0.301,4520.0,4519.8,8.47944609]
[1759950502208,0.301,4520.0,4519.9,2.21243832]
[1759950502415,0.1104,4519.9,4519.8,6.267]
[1759950502911,0.1104,4519.9,4519.8,8.47948727]
[1759950503422,0.301,4520.0,4519.8,8.47948727]
[1759950503423,0.301,4520.0,4519.9,2.21243832]
[1759950503890,0.301,4520.0,4519.9,2.22907233]
[1759950504283,0.301,4520.0,4519.9,2.21243832]
[1759950505806,0.301,4520.0,4519.9,2.22907233]
[1759950506009,0.301,4520.0,4519.9,2.21243832]
[1759950506217,0.301,4520.0,4519.9,3.38855204]
[1759950507125,0.301,4520.0,4519.9,6.266]
[1759950507313,0.301,4520.0,4519.9,8.47843832]
[1759950508605,0.301,4520.0,4519.9,6.266]
[1759950508805,0.7674,4520.0,4519.9,6.266]
[1759950509315,0.301,4520.0,4519.9,6.266]
[1759950509818,0.7674,4520.0,4519.9,6.266]
[1759950510024,0.301,4520.0,4519.3,2.21270518]
[1759950510228,0.301,4520.0,4519.7,2.21253445]
[1759950510523,0.301,4520.0,4519.8,6.266]
[1759950512446,0.1104,4519.8,4519.2,2.301]
[1759950512726,0.5768,4519.8,4519.5,2.21260807]